bitfinex/quotes_ETHUSD_20240717
["timestamp","ask_amount","ask_price","bid_price","bid_amount"]
[1721227179849,2.88368,3467.8,3467.1,0.55]
[1721227180047,2.93155275,3467.8,3467.1,0.55]
[1721227180251,2.93155275,3467.8,3467.1,1.181874]
[1721227180473,0.04787275,3467.8,3467.3,2.88403]
[1721227180679,0.04787275,3467.8,3467.4,3.43399]
[1721227180884,2.88336,3468.2,3467.5,0.55]
[1721227181094,0.04773438,3467.7,3467.5,0.55]
[1721227181401,0.04792762,3467.6,3467.5,0.93740396]
[1721227181562,0.04792762,3467.6,3467.5,3.82132396]
[1721227181901,2.88309,3468.5,3467.7,2.88369]
[1721227182185,2.2739,3468.6,3467.8,0.55]
[1721227182186,0.047771,3468.4,3467.8,0.55]
[1721227182482,2.2739,3468.6,3467.8,0.55]
[1721227182483,2.8831,3468.5,3467.8,0.55]
[1721227182692,0.04612737,3468.3,3467.8,0.55]
[1721227182987,0.04618415,3468.2,3467.8,0.55]
[1721227183172,2.8831,3468.5,3467.8,0.55]
[1721227183357,0.04625262,3468.4,3467.8,0.55]
[1721227183902,0.04625262,3468.4,3467.5,2.83240396]
[1721227183903,0.04625262,3468.4,3467.6,0.55]
[1721227184059,0.04625262,3468.4,3467.7,2.88375]
[1721227184399,0.04625262,3468.4,3467.5,5.71631396]
[1721227184400,2.88326,3468.3,3467.5,2.445]
[1721227184693,2.92942262,3468.4,3467.1,3.516124]
[1721227184694,0.04625262,3468.4,3467.1,5.961124]
[1721227184994,2.88348,3468.1,3467.3,2.88407]
[1721227185157,0.0462067,3468.0,3467.4,0.55]
[1721227186174,2.9297167,3468.0,3467.4,0.55]
[1721227187029,2.88368,3467.8,3467.4,0.55]
[1721227187291,2.88368,3467.8,3467.2,0.55]
[1721227187492,0.0460066,3467.7,3467.2,0.55]
[1721227187851,2.88368,3467.8,3467.2,0.55]
[1721227188267,0.0460066,3467.7,3467.3,2.88404]
[1721227188554,2.88348,3468.1,3467.4,0.55]
[1721227188747,0.04604283,3468.0,3467.4,3.434]
[1721227188950,2.88336,3468.2,3467.4,3.434]
[1721227189151,2.92950708,3468.1,3467.4,0.55]
[1721227189385,2.88356,3468.0,3467.3,0.55]
[1721227189609,0.04600859,3467.9,3467.3,3.43408]
[1721227190600,0.04600859,3467.9,3467.4,2.884]
[1721227190890,2.88342,3468.1,3467.5,0.55]
[1721227191118,0.04597434,3467.8,3467.5,0.55]
[1721227191262,2.88352,3468.0,3467.5,0.55]
[1721227191603,2.88342,3468.1,3467.5,0.55]
[1721227191799,0.04604283,3468.0,3467.5,0.55]
[1721227192692,0.04604283,3468.0,3467.7,2.88372]
[1721227192899,0.04604283,3468.0,3467.8,0.55]
[1721227193068,3.0,3468.4,3467.8,3.43367]
[1721227193268,0.04600859,3467.9,3467.8,3.43367]
[1721227193464,3.0,3468.4,3467.8,3.43367]
[1721227193706,0.04591755,3467.9,3467.8,0.55]
[1721227193898,5.88319,3468.4,3467.7,2.88374]
[1721227194201,5.88319,3468.4,3467.8,0.55]
[1721227194359,0.04614555,3468.3,3467.8,0.55]
[1721227194559,0.04614555,3468.3,3467.4,2.88395]
[1721227194789,0.04614555,3468.3,3467.5,0.55]
[1721227195002,2.88339,3468.2,3467.6,2.88383]
[1721227195297,2.92956357,3468.1,3467.7,0.55]
[1721227195802,2.92956357,3468.1,3467.6,0.55]
[1721227196385,0.04614357,3468.1,3467.6,0.55]
[1721227196564,2.92958357,3468.1,3467.6,0.55]
[1721227196898,5.18382357,3468.1,3467.3,2.88407]
[1721227197106,2.88352,3468.0,3467.3,2.88407]
[1721227197308,5.7671,3468.0,3467.3,2.88407]
[1721227197480,0.04612236,3467.9,3467.3,2.88407]
[1721227197876,2.92978236,3467.9,3467.3,2.88407]
[1721227198074,2.92978236,3467.9,3467.4,0.55]
[1721227199072,2.88367,3467.8,3467.4,0.55]
[1721227199590,2.88352,3468.0,3467.4,3.434]
[1721227199591,0.04605387,3467.7,3467.4,3.434]
[1721227199801,2.88352,3468.0,3467.4,1.181807]
[1721227200005,0.04612236,3467.9,3467.4,0.55]
[1721227200234,2.92970236,3467.9,3467.4,0.55]
[1721227200386,2.92970236,3467.9,3467.3,0.55]
[1721227200583,0.04612236,3467.9,3467.3,2.88407]
[1721227200912,2.88359,3467.9,3467.4,0.55]
[1721227201094,2.92974116,3467.8,3467.4,0.55]
[1721227201300,2.88406,3467.4,3466.9,2.445]
[1721227201500,2.88406,3467.4,3466.7,3.1853266]
[1721227201706,0.04588988,3467.3,3466.9,2.445]
[1721227201882,2.8838,3467.7,3467.1,2.88425]
[1721227202082,0.04584669,3467.2,3467.1,2.88425]
[1721227202435,2.88328,3468.3,3467.1,2.88425]
[1721227202436,5.8832,3468.4,3467.5,2.88386]
[1721227202724,2.3093,3468.9,3468.3,2.88324]
[1721227202935,2.88272,3469.0,3468.4,0.55]
[1721227203099,2.88277,3468.9,3468.4,0.55]
[1721227203428,2.88272,3469.0,3468.3,2.88325]
[1721227203632,2.88272,3469.0,3468.4,0.55]
[1721227203787,2.3093,3469.4,3468.4,0.55]
[1721227203788,2.88246,3469.3,3468.4,0.55]
[1721227204143,5.32286,3468.6,3468.0,2.445]
[1721227204352,2.8833,3468.3,3468.1,0.55]
[1721227204505,2.88322,3468.4,3468.1,0.55]
[1721227204828,2.88284,3468.8,3468.1,3.43336]
[1721227205034,2.88317,3468.5,3468.1,0.55]
[1721227205189,5.3691,3469.0,3467.8,0.55]
[1721227205190,2.88297,3468.7,3467.8,0.55]
[1721227205393,2.88313,3468.5,3467.8,2.88363]
[1721227205638,2.88313,3468.5,3467.9,0.55]
[1721227205820,5.3691,3469.0,3467.9,0.55]
[1721227205821,2.8833,3468.3,3467.9,0.55]
[1721227206001,2.8833,3468.3,3467.7,0.55]
[1721227206390,2.88297,3468.7,3467.9,2.88352]
[1721227206591,2.88319,3468.4,3467.7,5.3287]
[1721227206915,2.88319,3468.4,3467.8,0.55]
[1721227207119,2.88301,3468.6,3468.0,2.8835]
[1721227207303,2.88301,3468.6,3468.1,0.55]
[1721227207500,2.88285,3468.8,3468.1,0.55]
[1721227207703,5.88292,3468.7,3468.1,0.55]
[1721227208034,5.2518,3469.0,3468.1,2.995]
[1721227208239,2.88252,3469.2,3468.2,3.47112]
[1721227208536,5.88259,3469.1,3468.4,2.88314]
[1721227208706,2.88259,3469.1,3468.5,3.43307]
[1721227208889,2.88237,3469.4,3468.5,5.87807]
[1721227208890,2.88249,3469.3,3468.5,5.87807]
[1721227209099,10.33229,3469.5,3468.7,2.88291]
[1721227209317,7.45,3469.5,3468.9,5.32774]
[1721227209523,2.88198,3469.9,3469.0,2.88266]
[1721227209736,2.88156,3470.4,3469.5,2.88223]
[1721227209956,2.88156,3470.4,3469.6,3.43216]
[1721227210137,0.0353999,3470.5,3469.7,2.445]
[1721227210340,2.9168199,3470.5,3469.8,3.43199]
[1721227210538,2.88151,3470.4,3469.8,0.55]
[1721227211252,2.88168,3470.2,3469.5,0.55]
[1721227211666,0.0353999,3470.5,3469.5,0.55]
[1721227211830,2.3688,3470.2,3469.5,0.55]
[1721227212040,2.88193,3469.9,3469.3,0.55]
[1721227212353,2.88225,3469.6,3469.1,0.55]
[1721227212660,0.03935541,3469.5,3468.8,3.43284]
[1721227212866,2.92161541,3469.5,3468.8,3.43284]
[1721227213157,0.03935541,3469.5,3468.9,2.88274]
[1721227213373,0.03935541,3469.5,3469.0,0.55]
[1721227213578,2.88218,3469.6,3469.0,0.55]
[1721227213785,2.88185,3470.0,3469.2,2.88249]
[1721227214064,2.88185,3470.0,3469.3,0.55]
[1721227214269,0.03932856,3469.9,3469.3,0.55]
[1721227214608,2.88217,3469.6,3469.3,0.55]
[1721227215076,0.03926447,3469.5,3469.0,0.55]
[1721227215566,2.88217,3469.6,3469.0,0.55]
[1721227215879,2.88208,3469.8,3469.0,0.55]
[1721227216172,2.88226,3469.5,3469.0,0.55]
[1721227216341,2.88229,3469.5,3468.5,2.445]
[1721227216531,2.88261,3469.1,3468.4,7.34]
[1721227216732,2.4889,3469.4,3467.7,2.4865]
[1721227217003,2.8831,3468.5,3467.7,4.9315]
[1721227217201,2.8831,3468.5,3467.6,0.30070178]
[1721227217349,0.03863563,3468.4,3467.6,0.30070178]
[1721227217554,2.88348,3468.1,3467.6,0.30070178]
[1721227217865,2.88335,3468.2,3467.3,5.32908]
[1721227217866,2.92208154,3468.0,3467.3,5.32908]
[1721227218190,2.92208154,3468.0,3467.5,2.88388]
[1721227218191,0.03857154,3468.0,3467.5,2.88388]
[1721227218357,2.8828,3468.9,3467.9,2.88358]
[1721227218552,3.0,3468.8,3467.9,2.88358]
[1721227218788,2.88323,3468.4,3467.6,2.445]
[1721227219092,2.88323,3468.4,3467.3,1.12211742]
[1721227219093,2.88343,3468.1,3467.3,1.12211742]
[1721227219497,0.03857083,3468.0,3467.3,1.12211742]
[1721227220533,2.92214083,3468.0,3467.4,0.55]
[1721227221560,0.03857083,3468.0,3467.4,0.55]
[1721227221757,0.03857083,3468.0,3467.6,2.88383]
[1721227221975,2.88334,3468.2,3467.7,0.55]
[1721227222159,5.3317,3468.8,3467.7,0.55]
[1721227222160,2.88343,3468.1,3467.7,0.55]
[1721227222367,2.88327,3468.3,3467.4,0.55]
[1721227222566,2.88294,3468.7,3467.8,2.88365]
[1721227222808,5.3317,3468.8,3467.9,0.55]
[1721227222990,2.88309,3468.5,3467.9,0.55]
[1721227223172,2.92179339,3468.4,3467.8,0.55]
[1721227223382,0.03856339,3468.4,3467.8,2.88365]
[1721227223589,0.03856339,3468.4,3467.9,0.55]
[1721227223788,2.92172984,3468.3,3467.9,0.55]
[1721227223959,2.92172984,3468.3,3467.7,0.55]
[1721227224155,2.92172984,3468.3,3467.8,2.88363]
[1721227224156,0.03841984,3468.3,3467.8,2.88363]
[1721227224394,2.88303,3468.6,3467.9,0.55]
[1721227224558,3.0,3468.8,3467.9,1.426237]
[1721227224762,2.88306,3468.6,3467.9,4.309767]
[1721227224965,7.45,3469.0,3468.1,2.88335]
[1721227224966,10.33268,3469.0,3468.1,2.88335]
[1721227225269,10.33268,3469.0,3468.2,3.43331]
[1721227225502,0.03875714,3468.9,3468.2,3.43331]
[1721227225702,0.03875714,3468.9,3468.3,0.876166]
[1721227225858,0.03875714,3468.9,3468.4,0.55]
[1721227226371,2.88218,3469.6,3468.8,2.88284]
[1721227226580,2.88218,3469.6,3468.9,0.55]
[1721227226907,0.03901866,3469.5,3468.9,0.55]
[1721227227265,2.92128866,3469.5,3468.9,0.55]
[1721227227490,2.88252,3469.2,3468.8,0.55]
[1721227227671,2.88252,3469.2,3468.5,0.55]
[1721227227880,0.03888226,3469.1,3468.6,0.6754356]
[1721227228094,0.03888226,3469.1,3468.7,0.55]
[1721227228861,3.0,3469.4,3468.7,0.55]
[1721227229061,0.03887503,3469.0,3468.7,0.55]
[1721227229262,2.88268,3469.0,3468.5,0.55]
[1721227229499,2.88268,3469.0,3468.4,0.55]
[1721227229500,0.0388408,3468.9,3468.4,0.55]
[1721227229733,0.0388408,3468.9,3468.5,0.4309346]
[1721227229897,0.0388408,3468.9,3468.6,0.55]
[1721227230077,2.88267,3469.0,3468.6,0.55]
[1721227230402,0.03880657,3468.8,3468.6,0.55]
[1721227230699,0.03877234,3468.7,3468.4,0.55]
[1721227231079,2.88269,3469.0,3468.4,0.55]
[1721227231384,0.0387381,3468.6,3468.4,0.55]
[1721227231597,5.37752,3469.2,3468.4,4.1524336]
[1721227231797,3.0,3469.7,3468.4,3.7142736]
[1721227231798,2.88231,3469.5,3468.4,3.7142736]
[1721227232001,3.0,3469.4,3468.8,2.88277]
[1721227232166,0.06879374,3469.4,3468.9,3.43274]
[1721227232370,0.06879374,3469.4,3469.0,0.631559]
[1721227232571,2.8821,3469.7,3469.1,0.55]
[1721227232572,2.88218,3469.6,3469.1,0.55]
[1721227232785,0.06876037,3469.3,3469.1,0.55]
[1721227233098,2.88228,3469.5,3469.0,0.55]
[1721227233312,0.06872701,3469.2,3469.0,0.55]
[1721227233614,0.06869364,3469.1,3469.0,0.55]
[1721227233795,2.88228,3469.5,3469.0,0.55]
[1721227233978,2.88251,3469.2,3469.0,0.55]
[1721227234178,2.88251,3469.2,3468.3,7.34]
[1721227234179,2.3361,3469.3,3468.3,7.34]
[1721227234380,2.88281,3468.9,3468.1,2.88341]
[1721227234750,2.95165715,3468.8,3468.0,2.445]
[1721227234883,2.95165715,3468.8,3467.8,2.88359]
[1721227234884,2.88303,3468.6,3467.9,2.88358]
[1721227235065,2.88317,3468.4,3467.7,0.30067982]
[1721227235266,2.88317,3468.4,3467.7,3.18439982]
[1721227235470,0.06837353,3468.3,3467.8,2.88363]
[1721227235670,2.88317,3468.4,3467.8,3.98411098]
[1721227235995,0.06833654,3468.2,3467.8,3.98411098]
[1721227236188,2.95175425,3468.3,3467.7,0.30067982]
[1721227236504,2.88326,3468.3,3467.7,0.30067982]
[1721227236880,0.06841539,3468.2,3467.7,0.30067982]
[1721227237078,2.95175539,3468.2,3467.7,0.30067982]
[1721227237314,2.88343,3468.1,3467.7,0.30067982]
[1721227237517,2.88334,3468.2,3467.5,2.88391]
[1721227237814,0.06845585,3468.0,3467.5,3.705198]
[1721227237995,0.06835159,3467.9,3467.5,3.705198]
[1721227238201,2.88319,3468.4,3467.5,3.705198]
[1721227238382,2.88336,3468.2,3467.5,3.705198]
[1721227238798,0.06841836,3468.1,3467.5,3.705198]
[1721227239200,0.06841836,3468.1,3467.6,0.55]
[1721227239401,0.06841836,3468.1,3467.7,2.88373]
[1721227239586,0.06841836,3468.1,3467.8,3.43366]
[1721227239796,3.0,3468.5,3467.8,3.43366]
[1721227240121,3.0,3468.6,3467.8,3.43366]
[1721227240417,2.88317,3468.4,3467.8,0.55]
[1721227240619,2.88317,3468.4,3467.7,0.55]
[1721227240793,2.9516014,3468.3,3467.7,0.55]
[1721227241419,0.0683314,3468.3,3467.7,3.4337]
[1721227242217,0.0683314,3468.3,3467.7,0.55]
[1721227242218,2.88342,3468.1,3467.7,0.55]
[1721227242380,0.0682517,3468.0,3467.7,3.43367]
[1721227242579,2.88343,3468.1,3467.7,0.55]
[1721227242907,2.88359,3467.9,3467.4,0.3007575]
[1721227243109,2.88359,3467.9,3467.2,2.445]
[1721227243110,2.88359,3467.9,3467.2,2.88412]
[1721227243307,0.06792003,3467.8,3467.2,2.88412]
[1721227244094,2.95159003,3467.8,3467.0,2.88427]
[1721227244296,0.06792003,3467.8,3467.1,2.88417]
[1721227244521,2.88362,3467.9,3467.2,2.88416]
[1721227244693,0.06787402,3467.7,3467.2,5.32916]
[1721227244896,0.06789572,3467.8,3467.2,5.32916]
[1721227245092,0.06782891,3467.6,3467.2,5.32916]
[1721227245295,0.06786232,3467.7,3467.3,0.61627839]
[1721227245494,0.06779551,3467.5,3467.2,2.445]
[1721227245696,2.88368,3467.8,3467.3,0.55]
[1721227245923,0.0677549,3467.4,3467.3,0.55]
[1721227246125,2.88385,3467.6,3467.1,0.55]
[1721227247611,2.88367,3467.8,3467.1,0.55]
[1721227247809,2.95160511,3467.7,3467.1,1.45644569]
[1721227248002,0.06785511,3467.7,3467.2,2.88416]
[1721227248192,2.88362,3467.9,3467.2,2.88416]
[1721227248193,2.88362,3467.9,3467.3,0.55]
[1721227248600,0.0663559,3467.8,3467.3,0.55]
[1721227249801,2.88351,3468.0,3467.3,0.55]
[1721227249996,2.88365,3467.9,3467.3,0.55]
[1721227250227,2.95077949,3467.9,3467.3,0.55]
[1721227251026,2.88368,3467.8,3467.3,0.55]
[1721227251217,2.88376,3467.7,3467.0,0.30070693]
[1721227251547,2.88376,3467.7,3466.1,0.50183428]
[1721227251548,2.88457,3466.8,3466.1,0.50183428]
[1721227251688,2.88457,3466.8,3466.1,2.93496057]
[1721227251689,2.88459,3466.7,3466.1,2.93496057]
[1721227251891,2.95083606,3466.7,3466.1,0.58201206]
[1721227252086,2.95083606,3466.7,3466.0,2.88516]
[1721227252329,2.88467,3466.6,3466.0,2.88516]
[1721227252536,0.06624606,3466.7,3466.0,2.88516]
[1721227252713,0.06624606,3466.7,3466.2,2.88498]
[1721227252921,0.06624606,3466.7,3466.6,2.88467]
[1721227253092,5.33849,3468.1,3466.6,0.532967]
[1721227253293,2.88327,3468.3,3467.4,2.88399]
[1721227253493,0.06695209,3468.0,3467.5,3.4339]
[1721227253824,2.88279,3468.9,3468.1,2.88339]
[1721227253995,2.88279,3468.9,3468.2,0.55]
[1721227254396,0.06576842,3468.8,3468.2,0.55]
[1721227254591,2.94863842,3468.8,3468.2,0.55]
[1721227255028,2.94863842,3468.8,3466.7,12.90046216]
[1721227255029,2.88302,3468.6,3467.5,5.3289]
[1721227255208,2.88323,3468.4,3467.5,6.82618]
[1721227255511,2.88323,3468.4,3467.7,2.88374]
[1721227255512,0.06542421,3468.3,3467.7,2.88374]
[1721227255719,2.94867421,3468.3,3467.8,0.55]
[1721227256014,0.06542421,3468.3,3467.8,0.55]
[1721227256225,5.29317,3468.7,3467.9,0.343374]
[1721227256427,5.29317,3468.7,3467.5,3.94228]
[1721227256428,2.88297,3468.7,3468.0,3.4335]
[1721227256634,0.06569452,3468.6,3468.0,3.4335]
[1721227256802,2.88286,3468.8,3468.0,3.4335]
[1721227257139,0.06578998,3468.7,3468.0,3.4335]
[1721227257436,2.94871998,3468.7,3468.0,4.06521]
[1721227257645,2.94871998,3468.7,3468.0,0.55]
[1721227257646,2.88302,3468.6,3468.0,0.55]
[1721227257803,2.88302,3468.6,3467.7,3.43375]
[1721227258002,0.06497191,3468.5,3468.0,2.8835]
[1721227258202,0.06497191,3468.5,3468.1,0.55]
[1721227258496,0.06568991,3468.4,3468.1,0.55]
[1721227258720,2.88286,3468.8,3468.1,1.181716]
[1721227258925,0.06565655,3468.3,3468.1,4.065116]
[1721227259136,2.88286,3468.8,3468.1,4.065116]
[1721227259338,0.06562318,3468.2,3468.1,3.4334]
[1721227259639,0.06562318,3468.2,3468.1,0.55]
[1721227259857,0.06562318,3468.2,3468.0,3.43348]
[1721227260013,0.06476732,3468.1,3468.0,3.43345]
[1721227260546,2.4102,3469.1,3468.0,3.43345]
[1721227260547,2.883,3468.6,3468.0,3.43345]
[1721227260767,2.88274,3469.0,3468.1,2.88342]
[1721227260915,2.4102,3469.1,3468.2,0.55]
[1721227261117,2.88293,3468.7,3468.0,0.55]
[1721227261350,2.88302,3468.6,3468.0,0.55]
[1721227261515,2.88302,3468.6,3467.8,3.43366]
[1721227261728,2.88302,3468.6,3467.5,3.94228]
[1721227261729,2.88303,3468.6,3467.5,3.94228]
[1721227261934,2.88303,3468.6,3467.6,1.358618]
[1721227262128,2.88303,3468.6,3467.7,2.88374]
[1721227262541,2.88284,3468.8,3468.0,2.88343]
[1721227262740,2.88292,3468.7,3467.8,2.88363]
[1721227262940,2.4102,3469.1,3468.0,2.88344]
[1721227262941,2.88281,3468.9,3468.0,2.88344]
[1721227263145,2.88281,3468.9,3468.1,3.43336]
[1721227263967,2.88292,3468.7,3468.1,3.43336]
[1721227264957,2.88281,3468.9,3468.1,3.43336]
[1721227265163,5.29282,3469.1,3468.1,3.43336]
[1721227265366,1.20267523,3469.3,3468.3,2.445]
[1721227265580,1.20267523,3469.8,3469.0,5.32761]
[1721227265790,1.20267523,3470.2,3469.4,2.88233]
[1721227265953,2.88154,3470.4,3469.5,0.05763845]
[1721227266154,2.88154,3470.4,3469.6,2.88212]
[1721227266385,2.88135,3470.6,3469.7,3.43208]
[1721227266677,2.3019,3470.9,3470.0,2.88179]
[1721227266889,2.9168599,3470.5,3470.1,0.55]
[1721227267040,0.0353999,3470.5,3470.1,0.55]
[1721227267239,0.0353999,3470.5,3469.9,0.55]
[1721227268085,2.88159,3470.3,3469.7,0.55]
[1721227268445,0.0353999,3470.5,3469.7,0.55]
[1721227268446,2.9168599,3470.5,3469.7,0.55]
[1721227268645,2.88152,3470.4,3469.7,0.55]
[1721227268877,2.8816,3470.3,3469.7,0.55]
[1721227269054,2.9168299,3470.5,3469.6,2.88212]
[1721227269270,2.88161,3470.3,3469.7,0.55]
[1721227270264,2.9168299,3470.5,3469.7,0.55]
[1721227270668,2.88162,3470.3,3469.7,0.55]
[1721227271065,0.0353999,3470.5,3469.9,2.88184]
[1721227271264,0.0353999,3470.5,3470.0,0.55]
[1721227271710,0.0353999,3470.5,3470.0,2.88183]
[1721227271916,0.0353999,3470.5,3470.1,0.55]
[1721227272905,0.0353999,3470.5,3470.0,0.55]
[1721227273108,0.05727645,3470.4,3470.0,0.55]
[1721227273270,2.93884645,3470.4,3469.4,2.445]
[1721227273471,2.88193,3469.9,3469.0,2.445]
[1721227273770,2.318,3470.3,3468.7,2.88289]
[1721227273771,2.88215,3469.7,3468.7,2.88289]
[1721227273967,2.93916637,3469.8,3468.7,2.88289]
[1721227273968,2.8822,3469.6,3468.7,2.88289]
[1721227274204,2.93901499,3469.6,3468.7,2.88289]
[1721227274506,2.88238,3469.4,3468.7,2.88286]
[1721227274680,2.88238,3469.4,3468.5,2.88308]
[1721227275018,0.05681166,3469.3,3468.7,2.88286]
[1721227275324,2.88258,3469.2,3468.2,2.445]
[1721227275484,2.88289,3468.8,3468.0,2.8835]
[1721227275803,0.05665074,3468.7,3468.1,2.8834]
[1721227276208,0.05665074,3468.7,3468.1,3.704604]
[1721227276410,2.88302,3468.6,3467.8,5.32867]
[1721227276574,0.05665074,3468.7,3467.4,2.445]
[1721227276776,2.8835,3468.0,3466.9,2.445]
[1721227277069,0.05621793,3467.9,3467.1,2.8842]
[1721227277284,2.93980793,3467.9,3466.9,5.32936]
[1721227277485,2.93980793,3467.9,3466.9,1.10144697]
[1721227277486,2.88385,3467.6,3466.9,1.10144697]
[1721227277691,2.88385,3467.6,3466.9,3.98585697]
[1721227277910,0.05592181,3467.5,3466.9,3.98585697]
[1721227278275,2.88334,3468.2,3467.3,2.88408]
[1721227278504,2.88342,3468.1,3467.3,2.88408]
[1721227278713,2.88352,3468.0,3467.2,2.88415]
[1721227279012,0.05607985,3468.1,3467.3,3.43407]
[1721227279316,0.05608216,3468.0,3467.3,3.49174561]
[1721227279615,2.88352,3468.0,3467.3,0.55]
[1721227279927,0.05604878,3467.9,3467.3,0.55]
[1721227280276,2.88359,3467.9,3467.3,0.55]
[1721227280477,0.05577303,3467.8,3467.3,0.55]
[1721227282096,2.88392,3467.5,3466.8,0.30092972]
[1721227282296,0.05619419,3467.4,3466.8,0.30092972]
[1721227282595,2.94020419,3467.4,3466.8,0.30092972]
[1721227283411,0.05619419,3467.4,3466.9,0.55]
[1721227283728,0.05611266,3467.3,3467.0,2.88433]
[1721227283935,2.88327,3468.3,3467.1,0.55]
[1721227284240,3.0,3468.3,3467.2,2.88415]
[1721227284406,2.93979952,3468.2,3467.4,2.88394]
[1721227284590,5.93979952,3468.2,3467.4,2.88394]
[1721227284792,5.93979952,3468.2,3467.5,0.55]
[1721227285743,2.8836,3467.9,3467.5,0.55]
[1721227286208,0.05635683,3467.8,3467.3,0.55]
[1721227286410,2.88376,3467.7,3467.1,0.55]
[1721227286707,2.94007984,3467.7,3467.1,0.55]
[1721227287134,0.05631984,3467.7,3467.1,3.43424]
[1721227287349,2.8836,3467.9,3467.1,3.43424]
[1721227287350,2.8836,3467.9,3467.2,1.101661]
[1721227287632,2.8836,3467.9,3467.3,0.55]
[1721227287633,0.05628105,3467.6,3467.3,0.55]
[1721227287842,2.88309,3468.5,3467.5,2.8839]
[1721227288024,2.88282,3468.9,3468.0,2.88345]
[1721227288198,2.88282,3468.9,3467.7,1.7]
[1721227288199,2.88282,3468.9,3468.1,3.460061]
[1721227288532,2.88282,3468.9,3468.2,0.55]
[1721227289439,2.88282,3468.9,3468.2,3.43333]
[1721227290030,2.88285,3468.8,3468.2,3.43333]
[1721227290244,2.88302,3468.6,3468.2,0.55]
[1721227291136,2.88286,3468.8,3468.2,0.55]
[1721227291335,2.88286,3468.8,3467.9,0.55]
[1721227291336,2.88305,3468.6,3467.9,0.55]
[1721227291541,2.88309,3468.5,3468.0,0.343367]
[1721227291830,2.88309,3468.5,3468.1,0.55]
[1721227292033,2.88317,3468.4,3468.1,0.55]
[1721227292331,2.88317,3468.4,3467.9,0.55]
[1721227292536,2.88358,3468.0,3467.4,7.34]
[1721227292837,2.2935,3468.5,3467.0,2.88432]
[1721227292838,2.88359,3467.9,3467.0,2.88432]
[1721227293032,2.88359,3467.9,3467.2,2.88412]
[1721227293240,2.88368,3467.8,3467.1,3.59505144]
[1721227293542,2.88348,3468.1,3466.9,0.30079445]
[1721227293726,2.88426,3467.1,3466.9,0.30079445]
[1721227293900,2.88433,3467.0,3466.9,0.30079445]
[1721227294106,2.88459,3466.7,3466.0,10.27527369]
[1721227294339,2.88473,3466.6,3466.0,0.05012369]
[1721227294521,2.93842058,3466.6,3465.8,2.8853]
[1721227294843,2.88476,3466.5,3465.6,2.93561906]
[1721227295049,2.88492,3466.3,3465.6,2.93561906]
[1721227295340,0.05320088,3466.2,3465.6,2.93561906]
[1721227295832,2.88492,3466.3,3465.6,2.93561906]
[1721227296199,0.05312612,3466.2,3465.6,0.05012906]
[1721227296397,2.88518,3466.0,3465.2,2.88581]
[1721227296634,2.88492,3466.3,3465.4,2.88564]
[1721227297044,2.88517,3466.0,3465.3,2.522581]
[1721227297201,2.88517,3466.0,3465.2,2.88577]
[1721227297399,2.88535,3465.8,3465.0,17.88597]
[1721227297601,2.88535,3465.8,3465.1,2.8859]
[1721227297845,0.05366573,3465.7,3465.2,4.963017]
[1721227298215,2.88492,3466.3,3465.3,2.88574]
[1721227298416,0.05359177,3465.6,3465.4,0.0577063]
[1721227298722,2.88477,3466.5,3465.4,0.0577063]
[1721227298723,2.885,3466.2,3465.4,0.0577063]
[1721227298897,2.88508,3466.1,3465.5,0.55]
[1721227299102,2.88517,3466.0,3465.4,0.55]
[1721227299504,0.05369203,3465.9,3465.4,0.55]
[1721227299852,2.88535,3465.8,3465.4,0.55]
[1721227300009,2.93900861,3465.8,3465.4,0.55]
[1721227300206,2.93900861,3465.8,3465.3,0.30066141]
[1721227300207,0.05365861,3465.8,3465.3,0.30066141]
[1721227300440,2.88579,3465.3,3465.0,15.0]
[1721227300736,0.05241881,3465.2,3465.0,15.0]
[1721227301319,2.88559,3465.5,3465.0,15.0]
[1721227301320,2.88559,3465.5,3465.0,16.5]
[1721227301522,2.88572,3465.4,3465.0,15.0]
[1721227301852,2.88543,3465.7,3465.0,15.0]
[1721227302150,2.93838339,3465.6,3465.0,15.0]
[1721227302302,2.93838339,3465.6,3465.1,0.55]
[1721227302507,0.05284995,3465.5,3465.1,0.55]
[1721227302708,2.93843995,3465.5,3465.1,0.55]
[1721227302936,2.88577,3465.3,3465.1,0.55]
[1721227303302,0.05274961,3465.2,3465.1,0.55]
[1721227303502,2.88577,3465.3,3465.1,0.55]
[1721227303964,0.05274961,3465.2,3465.1,0.55]
[1721227304362,2.88577,3465.3,3465.1,0.55]
[1721227304575,0.05274961,3465.2,3465.1,0.55]
[1721227304855,2.88577,3465.3,3465.1,0.55]
[1721227305164,0.05274961,3465.2,3465.1,0.55]
[1721227305470,2.88577,3465.3,3465.1,0.55]
[1721227305676,0.05274961,3465.2,3465.1,0.55]
[1721227305970,2.88567,3465.4,3465.1,0.55]
[1721227306195,2.88559,3465.5,3465.1,0.55]
[1721227306472,2.6982097,3467.9,3465.1,2.105]
[1721227306473,2.88535,3465.8,3465.1,2.105]
[1721227306652,0.05256868,3465.4,3465.1,0.55]
[1721227306859,5.88547,3465.7,3465.1,0.55]
[1721227307380,0.05263557,3465.6,3465.1,0.55]
[1721227308444,2.88583,3465.2,3465.0,15.0]
[1721227308640,2.88591,3465.1,3465.0,15.0]
[1721227308868,2.93831433,3465.1,3465.0,15.0]
[1721227309265,5.82422433,3465.1,3465.0,15.0]
[1721227310236,5.82422433,3465.1,3465.0,15.55]